[Event "HUN-ch Rapid 2019"]
[Site "Ajka"]
[Date "2019.07.21"]
[Round "13.6"]
[White "Videki, Sandor"]
[Black "Ruck, Robert"]
[Result "0-1"]
[ECO "A22"]
[WhiteElo "2401"]
[BlackElo "2524"]
[Annotator "ChessBase"]
[PlyCount "125"]
[EventDate "2019.07.18"]
[EventType "swiss"]
[EventCountry "HUN"]
[SourceTitle "playchess.com"]
[Source "ChessBase"]
[SourceQuality "1"]
[TimeControl "1200+5"]

1. c4 {[%emt 0:00:48]} e5 {[%emt 0:00:05]} 2. Nc3 {[%emt 0:00:06]} Nf6 {[%emt 0:00:02]} 3. g3 {[%emt 0:00:09]} d5 {[%emt 0:00:01]} 4. cxd5 {[%emt 0:00:01]} Nxd5 {[%emt 0:00:02]} 5. Bg2 {[%emt 0:00:01]} Nb6 {[%emt 0:00:01]} 6. Nf3 {[%emt 0:00:04]} Nc6 {[%emt 0:00:01]} 7. O-O {[%emt 0:00:03]} Be7 {[%emt 0:00:02]} 8. d3 {[%emt 0:00:26]} O-O {[%emt 0:00:02]} 9. Be3 {[%emt 0:00:02]} Re8 {[%emt 0:00:03]} 10. Rc1 {[%emt 0:00:02]} Bf8 {[%emt 0:00:03]} 11. Na4 {[%emt 0:00:12]} Nd4 {[%emt 0:01:33]} 12. Re1 {[%emt 0:00:10]} c6 {[%emt 0:00:15]} 13. Nc5 {[%emt 0:00:13]} Bxc5 {[%emt 0:00:05]} 14. Rxc5 {[%emt 0:00:02]} Qd6 {[%emt 0:00:04]} 15. Qc1 {[%emt 0:01:28]} Bg4 {[%emt 0:02:30]} 16. Bxd4 {[%emt 0:02:24]} exd4 {[%emt 0:00:08]} 17. Rc2 {[%emt 0:02:04]} Bxf3 {[%emt 0:03:07]} 18. Bxf3 {[%emt 0:00:03]} Nd7 {[%emt 0:00:32]} 19. e4 {[%emt 0:02:12]} dxe3 {[%emt 0:00:23]} 20. Rxe3 {[%emt 0:00:02]} Nf6 {[%emt 0:06:16]} 21. Rce2 {[%emt 0:00:52]} Rxe3 {[%emt 0:00:04]} 22. Rxe3 {[%emt 0:00:32]} Rd8 {[%emt 0:00:20]} 23. Qc4 {[%emt 0:01:55]} Kf8 {[%emt 0:00:15]} 24. h4 {[%emt 0:00:13]} Rd7 {[%emt 0:00:44]} 25. a3 {[%emt 0:00:06]} h6 {[%emt 0:00:33]} 26. Qc3 {[%emt 0:00:54]} c5 {[%emt 0:01:43]} 27. Qc4 {[%emt 0:01:54]} b6 {[%emt 0:00:12]} 28. Qc3 {[%emt 0:00:09]} Rc7 {[%emt 0:00:53]} 29. Re2 {[%emt 0:01:09]} Re7 {[%emt 0:01:00]} 30. Rxe7 {[%emt 0:00:19]} Kxe7 {[%emt 0:00:01]} 31. Qc4 {[%emt 0:00:44]} Kf8 {[%emt 0:00:40]} 32. Qa6 {[%emt 0:00:13]} Qc7 {[%emt 0:00:09]} 33. Kf1 {[%emt 0:00:45]} Nd7 {[%emt 0:00:04]} 34. Be4 {[%emt 0:00:31]} Nf6 {[%emt 0:00:16]} 35. Bb7 {[%emt 0:00:16]} Qb8 {[%emt 0:00:08]} 36. Bf3 {[%emt 0:00:18]} Ne8 {[%emt 0:00:03]} 37. Qa4 {[%emt 0:00:09]} Qc7 {[%emt 0:00:10]} 38. Qe4 {[%emt 0:00:10]} Nd6 {[%emt 0:00:17]} 39. Qh7 {[%emt 0:00:10]} Ne8 {[%emt 0:00:07]} 40. Qe4 {[%emt 0:00:14]} Qd7 {[%emt 0:00:07]} 41. Be2 {[%emt 0:00:15]} Nd6 {[%emt 0:00:09]} 42. Qa8+ {[%emt 0:00:04]} Ke7 {[%emt 0:00:03]} 43. Qd5 {[%emt 0:00:14]} Qe6 {[%emt 0:00:05]} 44. Qc6 {[%emt 0:00:11]} Qd7 {[%emt 0:00:07]} 45. Qd5 {[%emt 0:00:01]} Qe6 {[%emt 0:00:10]} 46. Qc6 {[%emt 0:00:01]} Qd7 {[%emt 0:00:07]} 47. Qd5 {[%emt 0:00:02]} Qe6 {[%emt 0:00:05]} 48. Qa8 {[%emt 0:00:10]} Qd7 {[%emt 0:00:03]} 49. Bf3 {[%emt 0:00:15]} Nf5 {[%emt 0:00:06]} 50. Be4 {[%emt 0:00:08]} Nd4 {[%emt 0:00:02]} 51. Qb8 {[%emt 0:00:13]} Qh3+ {[%emt 0:00:10]} 52. Ke1 {[%emt 0:00:06]} Qd7 {[%emt 0:00:01]} 53. Qe5+ {[%emt 0:00:08]} Kf8 {[%emt 0:00:02]} 54. Kd2 {[%emt 0:00:21]} Qd8 {[%emt 0:00:12]} 55. Kd1 {[%emt 0:00:11]} Qd7 {[%emt 0:00:02]} 56. Kd2 {[%emt 0:00:00]} Qd8 {[%emt 0:00:01]} 57. Kc1 {[%emt 0:00:02]} Qd7 {[%emt 0:00:09]} 58. Kb1 {[%emt 0:00:00]} Qd8 {[%emt 0:00:05]} 59. Bd5 {[%emt 0:00:14]} Qd7 {[%emt 0:00:07]} 60. Bc4 {[%emt 0:00:03]} Qd8 {[%emt 0:00:06]} 61. Qe4 {[%emt 0:00:07]} Qd7 {[%emt 0:00:05]} 62. Qe5 {[%emt 0:00:00]} Qd8 {[%emt 0:00:02]} 63. Qf4 {[%emt 0:00:07]} 0-1

[Event "HUN-ch Rapid 2019"]
[Site "Ajka"]
[Date "2019.07.21"]
[Round "13.7"]
[White "Prohaszka, Peter"]
[Black "Jakab, Attila"]
[Result "1-0"]
[ECO "D35"]
[WhiteElo "2598"]
[BlackElo "2377"]
[Annotator "ChessBase"]
[PlyCount "95"]
[EventDate "2019.07.18"]
[EventType "swiss"]
[EventCountry "HUN"]
[SourceTitle "playchess.com"]
[Source "ChessBase"]
[SourceQuality "1"]
[TimeControl "1200+5"]

1. d4 {[%emt 0:00:01]} d5 {[%emt 0:00:03]} 2. c4 {[%emt 0:00:06]} e6 {[%emt 0:00:02]} 3. Nc3 {[%emt 0:00:20]} Nf6 {[%emt 0:00:02]} 4. cxd5 {[%emt 0:00:01]} exd5 {[%emt 0:00:02]} 5. Bg5 {[%emt 0:00:01]} Nbd7 {[%emt 0:00:04]} 6. e3 {[%emt 0:00:05]} c6 {[%emt 0:00:04]} 7. Bd3 {[%emt 0:00:05]} Bd6 {[%emt 0:00:05]} 8. Qc2 {[%emt 0:00:56]} Nf8 {[%emt 0:00:02]} 9. Nf3 {[%emt 0:00:14]} Ng6 {[%emt 0:00:03]} 10. Nh4 {[%emt 0:01:28]} O-O {[%emt 0:00:38]} 11. Nxg6 {[%emt 0:00:52]} fxg6 {[%emt 0:00:33]} 12. Bh4 {[%emt 0:00:24]} Be6 {[%emt 0:01:09]} 13. O-O-O {[%emt 0:01:10]} Qc7 {[%emt 0:00:11]} 14. Bg3 {[%emt 0:01:32]} Rae8 {[%emt 0:04:32]} 15. Kb1 {[%emt 0:00:46]} Bf5 {[%emt 0:01:12]} 16. Bxf5 {[%emt 0:00:42]} gxf5 {[%emt 0:00:02]} 17. Nb5 cxb5 {[%emt 0:00:08]} 18. Qxc7 {[%emt 0:00:10]} Bxc7 {[%emt 0:00:01]} 19. Bxc7 {[%emt 0:00:01]} Rc8 {[%emt 0:01:17]} 20. Be5 {[%emt 0:01:09]} Rc6 {[%emt 0:03:43]} 21. f3 {[%emt 0:01:50]} Rfc8 {[%emt 0:01:02]} 22. Rc1 {[%emt 0:00:03]} Kf7 {[%emt 0:00:02]} 23. Rxc6 {[%emt 0:00:39]} Rxc6 {[%emt 0:00:01]} 24. Rc1 {[%emt 0:02:35]} Nd7 {[%emt 0:00:00]} 25. Bf4 {[%emt 0:00:55]} Kf6 {[%emt 0:00:01]} 26. Rxc6+ {[%emt 0:00:29]} bxc6 {[%emt 0:00:01]} 27. Kc2 {[%emt 0:00:03]} h6 {[%emt 0:00:04]} 28. Kc3 {[%emt 0:00:58]} a5 {[%emt 0:00:22]} 29. b3 {[%emt 0:01:05]} b4+ {[%emt 0:00:59]} 30. Kd3 {[%emt 0:00:45]} Ke6 {[%emt 0:00:17]} 31. Bc7 {[%emt 0:00:04]} c5 {[%emt 0:00:03]} 32. Bxa5 {[%emt 0:00:59]} Kd6 {[%emt 0:00:01]} 33. dxc5+ {[%emt 0:00:18]} Kxc5 {[%emt 0:00:01]} 34. Bc7 {[%emt 0:00:18]} g5 {[%emt 0:00:09]} 35. Bd8 {[%emt 0:00:20]} Ne5+ {[%emt 0:00:19]} 36. Ke2 {[%emt 0:00:08]} Nc6 {[%emt 0:01:34]} 37. Bf6 {[%emt 0:00:03]} Kd6 {[%emt 0:00:01]} 38. g4 {[%emt 0:00:24]} Ke6 {[%emt 0:00:01]} 39. Bg7 {[%emt 0:00:03]} Kf7 {[%emt 0:00:39]} 40. Bxh6 {[%emt 0:00:06]} Kg6 {[%emt 0:00:01]} 41. Bf8 {[%emt 0:00:02]} d4 {[%emt 0:00:01]} 42. Bd6 {[%emt 0:00:23]} Kf6 {[%emt 0:00:10]} 43. e4 {[%emt 0:00:29]} fxe4 {[%emt 0:00:12]} 44. fxe4 Ke6 45. Bg3 {[%emt 0:00:10]} Kd7 {[%emt 0:00:21]} 46. Kd3 {[%emt 0:00:02]} Kc8 {[%emt 0:00:01]} 47. h3 {[%emt 0:00:05]} Kd7 {[%emt 0:00:01]} 48. Bf2 {[%emt 0:00:08]} 1-0

[Event "HUN-ch Rapid 2019"]
[Site "Ajka"]
[Date "2019.07.21"]
[Round "13.8"]
[White "Vertetics, Attila"]
[Black "Popovics, Adam"]
[Result "1-0"]
[ECO "A40"]
[WhiteElo "2438"]
[BlackElo "2365"]
[Annotator "NA"]
[PlyCount "65"]
[EventDate "2019.07.18"]
[EventType "swiss"]
[EventCountry "HUN"]
[SourceTitle "playchess.com"]
[Source "ChessBase"]
[SourceQuality "1"]
[TimeControl "1200+5"]

1. d4 {[%emt 0:00:01]} e6 {[%emt 0:00:04]} 2. Nf3 {[%emt 0:00:09]} Nf6 {[%emt 0:00:03]} 3. c4 {[%emt 0:00:03]} c5 {[%emt 0:00:00]} 4. e3 {[%emt 0:00:02]} cxd4 {[%emt 0:00:07]} 5. exd4 {[%emt 0:00:04]} d5 {[%emt 0:00:01]} 6. Nc3 {[%emt 0:00:04]} Be7 {[%emt 0:00:11]} 7. Bg5 {[%emt 0:00:51]} O-O {[%emt 0:00:09]} 8. Bd3 {[%emt 0:00:49]} dxc4 {[%emt 0:00:38]} 9. Bxc4 {[%emt 0:00:02]} a6 {[%emt 0:00:01]} 10. Ne5 {[%emt 0:04:37]} b5 {[%emt 0:00:35]} 11. Be2 {[%emt 0:00:10]} Bb7 {[%emt 0:02:28]} 12. Bf3 {[%emt 0:00:36]} Bxf3 {[%emt 0:00:59]} 13. Qxf3 {[%emt 0:00:41]} Qxd4 {[%emt 0:00:57]} 14. O-O {[%emt 0:00:22]} b4 {[%emt 0:01:16]} 15. Qxa8 {[%emt 0:00:17]} Qxe5 {[%emt 0:00:23]} 16. Bxf6 {[%emt 0:00:08]} Bxf6 {[%emt 0:00:07]} 17. Ne4 {[%emt 0:00:41]} Be7 {[%emt 0:01:01]} 18. Qb7 {[%emt 0:00:04]} Re8 {[%emt 0:00:10]} 19. b3 {[%emt 0:00:54]} f5 {[%emt 0:00:04]} 20. Nd2 {[%emt 0:00:07]} Bd6 {[%emt 0:00:16]} 21. g3 {[%emt 0:00:06]} Bc5 {[%emt 0:00:30]} 22. Nc4 {[%emt 0:01:28]} Qd5 {[%emt 0:00:14]} 23. Qxd5 {[%emt 0:01:09]} exd5 {[%emt 0:00:01]} 24. Ne3 {[%emt 0:00:01]} Re5 {[%emt 0:00:59]} 25. Rac1 {[%emt 0:00:26]} Nd7 {[%emt 0:00:02]} 26. Rfd1 {[%emt 0:00:36]} Bxe3 {[%emt 0:00:54]} 27. fxe3 {[%emt 0:00:03]} Nf6 {[%emt 0:00:01]} 28. Rd4 {[%emt 0:01:42]} Rxe3 {[%emt 0:01:29]} 29. Rxb4 {[%emt 0:00:01]} Re2 {[%emt 0:00:01]} 30. Rc7 {[%emt 0:00:29]} h5 {[%emt 0:01:00]} 31. Rbb7 {[%emt 0:00:09]} Ng4 {[%emt 0:00:24]} 32. Rxg7+ {[%emt 0:00:02]} Kh8 {[%emt 0:00:23]} 33. Rge7 {[%emt 0:00:03]} 1-0

[Event "HUN-ch Rapid 2019"]
[Site "Ajka"]
[Date "2019.07.21"]
[Round "13.9"]
[White "Csiszar, Csaba"]
[Black "Horvath, Adam"]
[Result "0-1"]
[ECO "A46"]
[WhiteElo "2432"]
[BlackElo "2517"]
[Annotator "ChessBase"]
[PlyCount "136"]
[EventDate "2019.07.18"]
[EventType "swiss"]
[EventCountry "HUN"]
[SourceTitle "playchess.com"]
[Source "ChessBase"]
[SourceQuality "1"]
[TimeControl "1200+5"]

1. d4 Nf6 2. Nf3 e6 3. e3 c5 4. Bd3 Nc6 5. a3 d5 6. b3 b6 7. Bb2 Bb7 8. Nbd2 cxd4 9. exd4 g6 10. O-O Bg7 11. Qe2 O-O 12. Rac1 Rc8 13. Rfe1 Qc7 14. c4 dxc4 15. bxc4 Rfe8 16. h3 Qb8 17. Qe3 a6 18. Ne4 Nxe4 19. Bxe4 b5 20. c5 Ne7 21. Ne5 Bxe5 22. dxe5 Bxe4 23. Qxe4 Red8 24. h4 Rd5 25. h5 Nc6 26. Re3 Qa7 27. Rg3 Qe7 28. Re1 Rcd8 29. Kh2 Rxc5 30. Ree3 Rc4 31. Qf3 Qh4+ 32. Rh3 Qf4+ 33. Qxf4 Rxf4 34. hxg6 hxg6 35. f3 Rc4 36. Bc3 Rd5 37. g4 Rdc5 38. Be1 Rxe5 39. Bc3 Rxc3 40. Rxc3 Nd4 41. Rc8+ Kg7 42. Kg3 Ne2+ 43. Kf2 Nf4 44. Rhh8 Re2+ 45. Kf1 g5 46. Rhg8+ Kf6 47. Ra8 Re3 48. Kf2 Rxa3 49. Ra7 Ng6 50. Rga8 Ne5 51. Rxa6 Rxf3+ 52. Kg2 Rf4 53. Rb6 Rxg4+ 54. Kh3 Rb4 55. Ra7 Rb3+ 56. Kg2 Rb2+ 57. Kg3 Nc4 58. Rbb7 Nd6 59. Rd7 Ke5 60. Ra6 Rd2 61. Kf3 f5 62. Rc7 g4+ 63. Ke3 Rd5 64. Ke2 f4 65. Rg7 f3+ 66. Ke1 Ne4 67. Rg6 f2+ 68. Ke2 Rd2+ 0-1

[Event "HUN-ch Rapid 2019"]
[Site "Ajka"]
[Date "2019.07.21"]
[Round "13.10"]
[White "Gelle, Istvan"]
[Black "Medvegy, Zoltan"]
[Result "0-1"]
[ECO "A40"]
[WhiteElo "2325"]
[BlackElo "2539"]
[Annotator "ChessBase"]
[PlyCount "80"]
[EventDate "2019.07.18"]
[EventType "swiss"]
[EventCountry "HUN"]
[SourceTitle "playchess.com"]
[Source "ChessBase"]
[SourceQuality "1"]
[TimeControl "1200+5"]

1. d4 {[%emt 0:00:01]} e6 {[%emt 0:00:11]} 2. Bf4 {[%emt 0:00:04]} c5 {[%emt 0:00:03]} 3. e3 {[%emt 0:00:03]} Nf6 {[%emt 0:00:15]} 4. c3 {[%emt 0:00:04]} Be7 {[%emt 0:00:06]} 5. Nd2 {[%emt 0:00:05]} O-O {[%emt 0:00:04]} 6. h3 {[%emt 0:00:05]} b6 {[%emt 0:00:05]} 7. Ngf3 {[%emt 0:00:02]} d6 {[%emt 0:00:21]} 8. a4 {[%emt 0:00:05]} cxd4 {[%emt 0:00:09]} 9. exd4 {[%emt 0:00:02]} a6 {[%emt 0:00:45]} 10. Be2 {[%emt 0:00:11]} Bb7 {[%emt 0:00:03]} 11. O-O {[%emt 0:00:03]} Nbd7 {[%emt 0:00:04]} 12. Bh2 {[%emt 0:00:06]} Re8 {[%emt 0:00:05]} 13. Re1 {[%emt 0:00:14]} Nf8 {[%emt 0:00:08]} 14. Qb3 {[%emt 0:00:34]} Ng6 {[%emt 0:00:36]} 15. Nc4 {[%emt 0:00:56]} Rb8 {[%emt 0:00:25]} 16. Nfd2 {[%emt 0:00:40]} Bc6 {[%emt 0:03:20]} 17. Ne3 {[%emt 0:01:18]} Qc8 {[%emt 0:00:24]} 18. Ndc4 {[%emt 0:01:40]} Qc7 {[%emt 0:00:08]} 19. Qa3 {[%emt 0:00:55]} Red8 {[%emt 0:00:27]} 20. a5 {[%emt 0:00:27]} b5 {[%emt 0:00:16]} 21. Nb6 {[%emt 0:00:01]} Qb7 {[%emt 0:01:07]} 22. b4 {[%emt 0:00:26]} Nd5 {[%emt 0:01:59]} 23. Nexd5 {[%emt 0:00:51]} Bxd5 {[%emt 0:00:01]} 24. Bf1 {[%emt 0:01:09]} Nf8 {[%emt 0:00:18]} 25. Rec1 {[%emt 0:01:25]} Bf6 {[%emt 0:05:44]} 26. Qb2 {[%emt 0:01:55]} Nd7 {[%emt 0:00:01]} 27. Bxd6 {[%emt 0:00:05]} Nxb6 {[%emt 0:00:05]} 28. Bxb8 {[%emt 0:00:00]} Nc4 {[%emt 0:00:50]} 29. Bxc4 bxc4 30. Bg3 {[%emt 0:02:24]} Bxg2 {[%emt 0:00:08]} 31. Kh2 {[%emt 0:00:15]} Bc6 {[%emt 0:01:22]} 32. Rg1 {[%emt 0:00:06]} Rd5 {[%emt 0:00:25]} 33. Qe2 {[%emt 0:00:11]} Qb5 {[%emt 0:00:02]} 34. Rae1 {[%emt 0:00:19]} Rf5 {[%emt 0:00:55]} 35. Be5 {[%emt 0:00:53]} Bg5 {[%emt 0:00:34]} 36. Rg3 {[%emt 0:00:44]} Qd5 {[%emt 0:00:41]} 37. f4 {[%emt 0:01:02]} Bh4 {[%emt 0:00:52]} 38. Rxg7+ {[%emt 0:00:13]} Kf8 {[%emt 0:00:00]} 39. Qg4 {[%emt 0:00:30]} Bxe1 {[%emt 0:00:07]} 40. Rg8+ {[%emt 0:00:10]} Ke7 {[%emt 0:00:00]} 0-1

[Event "HUN-ch Rapid 2019"]
[Site "Ajka"]
[Date "2019.07.21"]
[Round "13.11"]
[White "Farago, Ivan"]
[Black "Terbe, Julianna"]
[Result "0-1"]
[ECO "D10"]
[WhiteElo "2350"]
[BlackElo "2298"]
[Annotator "NA"]
[PlyCount "88"]
[EventDate "2019.07.18"]
[EventType "swiss"]
[EventCountry "HUN"]
[SourceTitle "playchess.com"]
[Source "ChessBase"]
[SourceQuality "1"]
[TimeControl "1200+5"]

1. d4 {[%emt 0:00:02]} d5 {[%emt 0:00:01]} 2. c4 {[%emt 0:00:02]} c6 {[%emt 0:00:01]} 3. cxd5 {[%emt 0:00:01]} cxd5 {[%emt 0:00:02]} 4. Bg5 {[%emt 0:00:02]} Nc6 {[%emt 0:01:00]} 5. Nc3 {[%emt 0:00:04]} Bf5 {[%emt 0:00:58]} 6. e4 {[%emt 0:00:45]} Bxe4 {[%emt 0:00:57]} 7. Nxe4 {[%emt 0:00:11]} dxe4 {[%emt 0:00:01]} 8. d5 {[%emt 0:00:01]} Ne5 {[%emt 0:00:30]} 9. Bb5+ {[%emt 0:02:04]} Nd7 {[%emt 0:00:02]} 10. Ne2 {[%emt 0:00:37]} a6 {[%emt 0:01:47]} 11. Ba4 {[%emt 0:00:03]} h6 {[%emt 0:00:27]} 12. Be3 {[%emt 0:00:16]} Ngf6 {[%emt 0:00:17]} 13. Nc3 {[%emt 0:00:12]} g6 {[%emt 0:00:33]} 14. O-O {[%emt 0:00:34]} Bg7 {[%emt 0:00:06]} 15. Bc2 {[%emt 0:00:13]} O-O {[%emt 0:00:19]} 16. Nxe4 {[%emt 0:00:02]} Kh7 {[%emt 0:01:27]} 17. d6 {[%emt 0:01:11]} Rc8 {[%emt 0:01:28]} 18. Nc3 {[%emt 0:00:34]} Ne5 {[%emt 0:00:53]} 19. dxe7 {[%emt 0:00:19]} Qxe7 {[%emt 0:00:01]} 20. Re1 {[%emt 0:00:56]} Qb4 {[%emt 0:00:49]} 21. Rb1 {[%emt 0:00:59]} Nc4 {[%emt 0:00:52]} 22. Bc1 {[%emt 0:00:24]} Rfd8 {[%emt 0:00:50]} 23. Qe2 {[%emt 0:00:42]} Re8 {[%emt 0:00:19]} 24. Qf1 {[%emt 0:00:03]} Na3 {[%emt 0:01:43]} 25. Rxe8 {[%emt 0:01:21]} Rxe8 {[%emt 0:00:06]} 26. Bxg6+ {[%emt 0:00:53]} fxg6 {[%emt 0:00:06]} 27. bxa3 {[%emt 0:00:05]} Qxc3 {[%emt 0:00:02]} 28. Bb2 {[%emt 0:00:11]} Qc6 {[%emt 0:00:20]} 29. h3 {[%emt 0:00:05]} b5 {[%emt 0:00:06]} 30. Rc1 {[%emt 0:00:03]} Qd7 {[%emt 0:00:08]} 31. Rd1 Qe6 {[%emt 0:00:05]} 32. Qd3 {[%emt 0:00:18]} Qxa2 {[%emt 0:00:33]} 33. Bxf6 {[%emt 0:00:17]} Bxf6 {[%emt 0:00:01]} 34. Qd6 {[%emt 0:00:08]} Qe6 {[%emt 0:00:19]} 35. Qc5 {[%emt 0:00:07]} Bg7 {[%emt 0:00:28]} 36. Qc7 {[%emt 0:00:29]} Re7 {[%emt 0:00:10]} 37. Qd8 {[%emt 0:00:05]} Rf7 {[%emt 0:00:15]} 38. Qd2 {[%emt 0:00:11]} Qf6 {[%emt 0:00:13]} 39. g3 {[%emt 0:00:10]} Qf3 {[%emt 0:00:15]} 40. Rf1 {[%emt 0:00:45]} Qxa3 {[%emt 0:00:24]} 41. Qd5 {[%emt 0:00:01]} Qf3 {[%emt 0:00:06]} 42. Qd6 {[%emt 0:00:02]} a5 {[%emt 0:00:15]} 43. Qb6 {[%emt 0:00:10]} a4 {[%emt 0:00:05]} 44. Qxb5 {[%emt 0:00:01]} Bd4 {[%emt 0:00:09]} 0-1

[Event "HUN-ch Rapid 2019"]
[Site "Ajka"]
[Date "2019.07.21"]
[Round "13.12"]
[White "Dankhazi, Andras"]
[Black "Csati, Oliver"]
[Result "1/2-1/2"]
[ECO "E06"]
[WhiteElo "2277"]
[BlackElo "2233"]
[Annotator "NA"]
[PlyCount "86"]
[EventDate "2019.07.18"]
[EventType "swiss"]
[EventCountry "HUN"]
[SourceTitle "playchess.com"]
[Source "ChessBase"]
[SourceQuality "1"]
[TimeControl "1200+5"]

1. d4 {[%emt 0:00:04]} Nf6 {[%emt 0:00:02]} 2. c4 {[%emt 0:00:19]} e6 {[%emt 0:00:02]} 3. Nf3 {[%emt 0:00:01]} d5 {[%emt 0:00:07]} 4. g3 {[%emt 0:00:05]} Be7 {[%emt 0:00:13]} 5. Bg2 {[%emt 0:00:09]} O-O {[%emt 0:00:10]} 6. O-O {[%emt 0:00:34]} dxc4 {[%emt 0:00:07]} 7. Ne5 {[%emt 0:00:01]} Nc6 {[%emt 0:00:13]} 8. Nxc6 {[%emt 0:00:09]} bxc6 {[%emt 0:00:02]} 9. Na3 {[%emt 0:00:01]} Bxa3 {[%emt 0:01:16]} 10. bxa3 {[%emt 0:00:01]} Rb8 {[%emt 0:02:03]} 11. Qa4 {[%emt 0:01:27]} Qxd4 {[%emt 0:04:55]} 12. Be3 {[%emt 0:00:04]} Qb2 {[%emt 0:01:39]} 13. Qxc4 {[%emt 0:03:20]} Qb5 {[%emt 0:00:58]} 14. Qxb5 {[%emt 0:01:17]} Rxb5 {[%emt 0:00:14]} 15. Bxa7 {[%emt 0:02:21]} Ra5 {[%emt 0:01:15]} 16. Bb8 {[%emt 0:02:03]} Rxa3 {[%emt 0:00:30]} 17. Bxc7 {[%emt 0:00:14]} Ra7 {[%emt 0:01:37]} 18. Bb6 {[%emt 0:00:38]} Ra6 {[%emt 0:00:16]} 19. Bc5 {[%emt 0:00:01]} Re8 {[%emt 0:01:01]} 20. Rfc1 {[%emt 0:02:00]} e5 {[%emt 0:00:18]} 21. a4 {[%emt 0:01:02]} Be6 {[%emt 0:00:33]} 22. Bb4 {[%emt 0:00:12]} Bd5 {[%emt 0:00:10]} 23. Bf1 {[%emt 0:00:01]} e4 {[%emt 0:01:09]} 24. e3 {[%emt 0:00:32]} Raa8 {[%emt 0:00:04]} 25. a5 {[%emt 0:00:06]} Nd7 {[%emt 0:00:47]} 26. a6 {[%emt 0:02:54]} Ne5 {[%emt 0:00:06]} 27. Bc5 {[%emt 0:00:07]} Nf3+ {[%emt 0:01:18]} 28. Kg2 {[%emt 0:00:01]} Nd2 {[%emt 0:00:01]} 29. Ra3 {[%emt 0:00:40]} Nb3 {[%emt 0:00:41]} 30. Rc3 {[%emt 0:00:03]} Nxc5 {[%emt 0:00:01]} 31. Rxc5 {[%emt 0:00:01]} Ra7 {[%emt 0:00:05]} 32. Be2 {[%emt 0:00:07]} Rea8 {[%emt 0:00:10]} 33. Ra1 {[%emt 0:00:21]} Kf8 {[%emt 0:00:04]} 34. Rb1 {[%emt 0:00:01]} Ke7 {[%emt 0:00:08]} 35. Rc2 {[%emt 0:00:07]} Kd6 {[%emt 0:00:20]} 36. Rcb2 {[%emt 0:00:01]} g5 {[%emt 0:00:14]} 37. Rb7 {[%emt 0:00:59]} Rxb7 {[%emt 0:00:08]} 38. Rxb7 {[%emt 0:00:03]} c5 {[%emt 0:00:04]} 39. Rb6+ {[%emt 0:00:05]} Kc7 {[%emt 0:00:03]} 40. Rb5 {[%emt 0:00:20]} Kc6 {[%emt 0:00:09]} 41. Ra5 {[%emt 0:00:10]} c4 {[%emt 0:00:05]} 42. Kf1 {[%emt 0:00:04]} Be6 {[%emt 0:00:01]} 43. Ke1 {[%emt 0:00:34]} Kb6 {[%emt 0:00:01]} 1/2-1/2

[Event "HUN-ch Rapid 2019"]
[Site "Ajka"]
[Date "2019.07.21"]
[Round "13.13"]
[White "Csonka, Balazs"]
[Black "Borhy, Marcell"]
[Result "1/2-1/2"]
[ECO "A21"]
[WhiteElo "2472"]
[BlackElo "2382"]
[Annotator "ChessBase"]
[PlyCount "92"]
[EventDate "2019.07.18"]
[EventType "swiss"]
[EventCountry "HUN"]
[SourceTitle "playchess.com"]
[Source "ChessBase"]
[SourceQuality "1"]
[TimeControl "1200+5"]

1. c4 {[%emt 0:00:01]} e5 {[%emt 0:00:02]} 2. Nc3 {[%emt 0:00:03]} d6 {[%emt 0:00:06]} 3. Nf3 {[%emt 0:01:18]} Nf6 {[%emt 0:00:09]} 4. g3 {[%emt 0:01:01]} c6 {[%emt 0:00:17]} 5. Bg2 {[%emt 0:00:53]} Be7 {[%emt 0:00:02]} 6. O-O {[%emt 0:00:38]} O-O {[%emt 0:00:16]} 7. Rb1 {[%emt 0:01:17]} Be6 {[%emt 0:00:21]} 8. d3 {[%emt 0:00:11]} h6 {[%emt 0:00:04]} 9. b4 {[%emt 0:00:31]} Nbd7 {[%emt 0:00:01]} 10. e4 {[%emt 0:02:47]} d5 {[%emt 0:00:58]} 11. exd5 {[%emt 0:00:20]} cxd5 {[%emt 0:00:02]} 12. Qe2 {[%emt 0:00:04]} Qc7 {[%emt 0:01:44]} 13. Nb5 {[%emt 0:04:07]} Qb8 {[%emt 0:00:08]} 14. Re1 {[%emt 0:00:02]} a6 {[%emt 0:01:53]} 15. Nc3 {[%emt 0:00:06]} d4 {[%emt 0:00:45]} 16. Ne4 {[%emt 0:01:08]} Nxe4 {[%emt 0:01:26]} 17. Qxe4 {[%emt 0:00:02]} Bd6 {[%emt 0:00:33]} 18. Nh4 {[%emt 0:01:09]} Ra7 {[%emt 0:03:11]} 19. Nf5 {[%emt 0:00:18]} Re8 {[%emt 0:00:28]} 20. Nxd6 {[%emt 0:02:55]} Qxd6 {[%emt 0:00:02]} 21. f4 {[%emt 0:00:17]} f6 {[%emt 0:00:30]} 22. fxe5 {[%emt 0:01:23]} Nxe5 {[%emt 0:00:11]} 23. Bf4 {[%emt 0:00:40]} Bf7 {[%emt 0:00:08]} 24. Bxe5 {[%emt 0:00:20]} fxe5 {[%emt 0:00:26]} 25. a4 {[%emt 0:00:12]} b6 26. Qc6 {[%emt 0:00:04]} Qg6 {[%emt 0:01:36]} 27. Qxg6 {[%emt 0:00:11]} Bxg6 {[%emt 0:00:02]} 28. Be4 {[%emt 0:00:05]} Kh7 {[%emt 0:00:33]} 29. Rb2 {[%emt 0:00:09]} Bxe4 {[%emt 0:00:54]} 30. Rxe4 {[%emt 0:00:02]} a5 {[%emt 0:00:02]} 31. b5 {[%emt 0:00:06]} Kg6 {[%emt 0:00:08]} 32. Rbe2 {[%emt 0:00:12]} Rae7 {[%emt 0:00:04]} 33. Kf2 {[%emt 0:00:04]} Kf6 {[%emt 0:00:16]} 34. Ke1 {[%emt 0:00:01]} Rc8 {[%emt 0:00:41]} 35. Kd2 {[%emt 0:00:06]} Rc5 {[%emt 0:00:02]} 36. Rf2+ {[%emt 0:00:05]} Ke6 {[%emt 0:00:01]} 37. Rf8 {[%emt 0:00:05]} Kd6 {[%emt 0:00:05]} 38. Ke2 {[%emt 0:00:10]} Rcc7 {[%emt 0:00:05]} 39. Kd2 {[%emt 0:00:04]} Rf7 {[%emt 0:01:26]} 40. Rd8+ {[%emt 0:00:06]} Rcd7 {[%emt 0:00:04]} 41. Re8 {[%emt 0:00:04]} Rde7 {[%emt 0:00:05]} 42. Rd8+ {[%emt 0:00:02]} Rd7 {[%emt 0:00:01]} 43. Rb8 {[%emt 0:00:04]} Rb7 {[%emt 0:00:01]} 44. Re8 {[%emt 0:00:10]} Rbe7 {[%emt 0:00:02]} 45. Rd8+ {[%emt 0:00:02]} Rd7 {[%emt 0:00:01]} 46. Rb8 {[%emt 0:00:08]} Rb7 {[%emt 0:00:01]} 1/2-1/2